Cogmind - Beta 15 @@@ ROGUE MODE // 2025.05.27 @ 00:32:18 Player: Zaros426 Result: Destroyed by QB-J3O(j) with Overtuned Pulse Rifle Performance ------------- Evolutions (0) 0 Regions Visited (5) 1000 Robots Destroyed (64) 320 Value Destroyed (1380) 1380 Prototype IDs (21) 420 Alien Tech Used (0) 0 Bonus (1004) 1004 TOTAL SCORE: 4124 Bonus ------- High Alert Combat Kills 8 Follower Combat Kills 196 Registered with UFD 300 Met Optimus in HQ 500 Cogmind --------- Core Integrity 0/250 Matter 300/300 Energy 296/300 System Corruption 0% Temperature Cool (28) Movement Rolling (130) Ox2 Location -9/Scraptown Parts ------- > --- POWER (1) -------- Angular Momentum Engine > --- PROPULSION (2) --- Armored Huge Wheel > --- UTILITY (2) ------ High-capacity Storage Unit Drone Bay (2/2) > --- WEAPON (2) ------- Spread Laser Heavy Machine Gun > --- INVENTORY (20) --- Arachnoskeleton Cooling System Vampiric Humpback High-capacity Battery (250) Matter Compressor (250) Deep Structural Scanner Improved Terrain Scanner Surveybot 17 Chip Mapping Drone Bay (3/3) EMP Blaster Heavy Rocket Launcher CPS Tube (2) CPS Tube (2) Junk Cannon (10) Makeshift Hammer Deploy-a-Sentry Peak State ------------ > --- POWER ------------ Improved Ion Engine > --- PROPULSION ------- Armored Huge Wheel > --- UTILITY ---------- Humpback > --- WEAPON ----------- Junk Cannon > --- INVENTORY -------- Angular Momentum Engine Spiked Treads Medium Treads Arachnoskeleton Cooling System Large Storage Unit High-capacity Storage Unit High-capacity Battery Matter Compressor Deep Structural Scanner Sensor Array Improved Signal Interpreter Improved Terrain Scanner Surveybot 17 Chip ECM Suite Layered Light Armor Plating System Restoration Module Drone Bay Drone Bay Mapping Drone Bay Heavy EM Pulse Gun Spread Laser Heavy Machine Gun EMP Blaster Heavy Rocket Launcher CPS Tube CPS Tube Makeshift Hammer [Rating: 35] Favorites ----------- Power Improved Ion Engine Engine Improved Ion Engine Propulsion Light Treads Treads Light Treads Wheel Armored Huge Wheel Utility High-capacity Storage Unit Device Structural Scanner Storage High-capacity Storage Unit Protection Light Armor Plating Weapon Subdweller Machine Gun Energy Gun Spread Laser Energy Cannon Subdweller Beam Cannon Ballistic Gun Subdweller Machine Gun Launcher Grenade Launcher Special Weapon Junk Cannon Impact Weapon Makeshift Hammer Special Melee Weapon Datajack Build | -11 -10 -10 -10 -9 -9 ------- Run | Yrd Mat Min Sub Rec Scr Slots Evolved . | . . . . . . Power . | . . . . . . Propulsion . | . . . . . . Utility . | . . . . . . Weapon . | . . . . . . Parts Attached 56 | 7 12 3 20 5 9 Power 7 | 1 1 1 1 2 1 Engine 7 | 1 1 1 1 2 1 Core . | . . . . . . Reactor . | . . . . . . Propulsion 7 | 2 1 . 3 . 1 Treads 5 | 2 . . 3 . . Leg . | . . . . . . Wheel 2 | . 1 . . . 1 Hover . | . . . . . . Flight . | . . . . . . Utility 19 | 2 3 1 6 3 4 Device 5 | 1 1 . 2 . 1 Storage 6 | 1 2 . . 1 2 Processor . | . . . . . . Hackware . | . . . . . . Protection 8 | . . 1 4 2 1 Artifact . | . . . . . . Weapon 23 | 2 7 1 10 . 3 Energy Gun 2 | . 1 . . . 1 Energy Cannon 2 | . . . 2 . . Ballistic Gun 10 | 2 1 1 5 . 1 Ballistic Cannon . | . . . . . . Launcher 5 | . 4 . 1 . . Special Weapon 2 | . . . 1 . 1 Impact Weapon 1 | . . . 1 . . Slashing Weapon . | . . . . . . Piercing Weapon . | . . . . . . Special Melee Weapon 1 | . 1 . . . . Unidentified Prototypes 1 | . . . . . 1 Parts Lost 5 | . 1 1 2 1 . Power 2 | . . 1 1 . . Propulsion . | . . . . . . Utility 1 | . . . 1 . . Weapon 2 | . 1 . . 1 . Highest Loss Streak 1 | . 1 1 1 1 . To Critical Strikes . | . . . . . . Average Backups 15 | 1 13 19 8 12 20 Power . | . . . . 1 1 Propulsion 1 | . 1 2 . 1 1 Utility 7 | . 7 10 3 5 11 Weapon 4 | 1 3 5 3 3 4 Tool/Special . | . . . . . . Unused Backups 52 | . 2 . 10 10 30 Power 1 | . . . . 1 . Propulsion 4 | . . . . 2 2 Utility 33 | . 1 . 7 4 21 Weapon 10 | . . . 3 3 4 Tool/Special 4 | . 1 . . . 3 Average Slot Usage (%) 80 | . 98 99 92 87 62 Engine 13 | . 14 13 11 14 13 Treads 17 | . 22 14 25 28 7 Wheel 6 | . 5 13 2 . 10 Device 6 | . 14 4 9 4 1 Storage 11 | . 14 14 7 12 13 Protection 3 | . . 9 5 7 . Energy Gun 1 | . 3 . . . 2 Energy Cannon 2 | . . . 6 . . Ballistic Gun 11 | . 18 27 18 5 3 Impact Weapon 4 | . . . 1 14 6 Peak Build Rating 35 | 7 10 10 18 18 35 Average Rating 16 | 5 8 9 11 16 23 On Entrance 10 | . 7 9 9 18 17 Naked Turns . | . . . . . . Heaviest Build 221 | 13 51 52 62 55 221 Greatest Support 40 | 40 40 40 40 40 40 Greatest Overweight (x) 7 | . 3 3 3 1 7 Average Overweight (x) 2 | . 1 2 . . 4 Largest Inventory Capacity 35 | 8 20 20 20 20 35 Average Capacity 20 | 7 16 20 12 17 27 Most Carried 35 | 3 20 20 20 20 35 Average Carried 17 | 1 13 19 9 16 23 Final Capacity 20 | 8 20 20 20 20 20 Final Carried 20 | 3 20 20 20 20 20 Class Distribution -------------------- 43% | Mutant 25% | Commander-Mutant 21% | Hauler-Mutant 5% | Subdweller-Mutant 3% | Scavenger-Mutant Dominant Class ---------------- Mutant | -10/Materials Mutant | -10/Mines Mutant | -10/Subcaves Commander-Mutant | -9/Recycling Hauler-Mutant | -9/Scraptown Resources | -11 -10 -10 -10 -9 -9 ----------- Run | Yrd Mat Min Sub Rec Scr Matter Collected 2887 | 286 563 418 787 146 687 Remotely . | . . . . . . Salvage Created 1636 | 92 722 195 371 256 . Parts 119 | 10 62 12 28 7 . Haulers Intercepted 2 | . 2 . . . . Recyclers Shooed 3 | 1 . . . 2 . Parts Field Recycled . | . . . . . . Retrieved Matter . | . . . . . . Parts Self-Destructed 9 | . . . 9 . . Prevented . | . . . . . . Kills | -11 -10 -10 -10 -9 -9 ------- Run | Yrd Mat Min Sub Rec Scr Combat Hostiles Destroyed 41 | . 18 7 15 1 . Melee 1 | . . . . 1 . Guns 11 | . 5 2 4 . . Cannons 3 | . . . 3 . . AOE 25 | . 13 5 7 . . Classes Destroyed 10 | 2 6 . 1 1 . Worker 8 | . 7 1 . . . Builder 4 | . 3 . . 1 . Tunneler 3 | 2 1 . . . . Hauler 2 | . 2 . . . . Recycler 4 | 1 1 . . 2 . Operator 2 | . 2 . . . . Swarmer 12 | . 6 3 3 . . Grunt 16 | . 12 4 . . . Sentry 1 | . . . . 1 . Subdweller 12 | . . . 12 . . Best Kill Streak 5 | 2 5 3 3 2 . Combat Bots Only 3 | . 3 3 3 1 . Max Kills in Single Turn 3 | 1 3 2 2 1 . Gunslinging . | . . . . . . Exploded 2 | . 2 2 2 . . Melee 1 | . . . . 1 . Uniques/NPCs Destroyed . | . . . . . . Combat | -11 -10 -10 -10 -9 -9 -------- Run | Yrd Mat Min Sub Rec Scr Hostile Shots Fired 139 | . 49 35 47 7 1 Missed 42 | . 16 11 15 . . Hits 97 | . 33 24 32 7 1 Projectile 97 | . 33 24 32 7 1 AOE 11 | . . . 6 5 . Critical Strikes 1 | . . . . . 1 Damage Taken 1947 | . 510 293 891 236 17 Core 255 | . 69 60 91 18 17 Absorbed by Shields 5 | . . . . . 5 Core Remaining (%) 100 | 100 . . . . . Volleys Fired 155 | 8 71 22 48 3 3 Largest 2 | 2 2 2 2 1 1 Hottest 110 | 40 70 40 110 30 30 Shots Fired 254 | 16 130 37 65 3 3 Gun 178 | 16 99 30 27 3 3 Cannon 23 | . . . 23 . . Launcher 51 | . 31 7 13 . . Special 2 | . . . 2 . . Kinetic 160 | 16 75 30 33 3 3 Thermal 25 | . . . 25 . . Explosive 45 | . 31 7 7 . . Electromagnetic 24 | . 24 . . . . Robot Hit Streak 21 | 4 10 7 21 1 . Robot Miss Streak 5 | 2 5 2 2 2 . Penetration Max . | . . . . . . Secondary Targets . | . . . . . . Shots Hit Robots 143 | 8 62 25 40 8 . Core Hits 99 | 5 53 15 23 3 . Critical Kills 4 | . . . 2 2 . Critical Parts Destroyed 2 | . . . . 2 . Critical Strikes 6 | . . . 2 4 . Meltdown 1 | . . . 1 . . Destroy 2 | . . . 1 1 . Smash 3 | . . . . 3 . Melee Attacks 35 | . . . 21 14 . Impact 35 | . . . 21 14 . Slashing . | . . . . . . Piercing . | . . . . . . Sneak Attacks 4 | . . . . 4 . Combat Hostiles . | . . . . . . Follow-up Attacks . | . . . . . . Damage Inflicted 4855 | 87 1861 551 1757 599 . Guns 1241 | 87 473 225 434 22 . Cannons 267 | . . . 267 . . Explosions 2756 | . 1374 326 1056 . . Melee 577 | . . . . 577 . Ramming 14 | . 14 . . . . Kinetic 1471 | 87 301 225 836 22 . Thermal 267 | . . . 267 . . Explosive 2354 | . 1374 326 654 . . Electromagnetic 172 | . 172 . . . . Impact 577 | . . . . 577 . Slashing . | . . . . . . Piercing . | . . . . . . Highest Corruption 1 | . 1 1 1 . . Average Corruption 1 | . 1 1 1 . . Corruption Purged 1 | . . . 1 . . Corruption Blocked . | . . . . . . Effects 46 | . 13 4 29 . . Message Errors 10 | . 2 2 6 . . Matter Fused 7 | . 4 1 2 . . Heat Flow Errors 6 | . 2 1 3 . . Energy Discharges 9 | . 2 . 7 . . Data Loss (minor) 8 | . 1 . 7 . . Data Loss (major) 3 | . . . 3 . . Misfires 2 | . 2 . . . . Alerts 1 | . . . 1 . . Overload Shots . | . . . . . . Overflow Damage 200 | . 33 2 27 138 . Projectiles . | . . . . . . Explosions 62 | . 33 2 27 . . Melee 138 | . . . . 138 . Knockbacks 2 | . 1 . . 1 . Impact 2 | . 1 . . 1 . Kinetic . | . . . . . . Secondary . | . . . . . . Self-Inflicted Damage 72 | . 72 . . . . Shots 3 | . 3 . . . . Rammed 7 | . 7 . . . . Targets Rammed 7 | . 7 . . . . Kicked . | . . . . . . Crushed . | . . . . . . Highest Temperature 252 | . 208 157 252 . 13 Average Temperature 37 | . 35 25 77 . 13 Received Heat Transfer 409 | . 180 141 51 9 28 Siege Activations . | . . . . . . Martial Activations . | . . . . . . Shielding Activations . | . . . . . . Robots Disrupted . | . . . . . . Combat Hostiles . | . . . . . . Robots Corrupted 1 | . . . . 1 . Combat Hostiles . | . . . . . . Parts Fried 1 | . . . . 1 . Impact Corruptions 4 | . . . . 4 . Robots Melted 1 | . . . 1 . . Combat Hostiles 1 | . . . 1 . . Parts Melted 2 | . . . 2 . . Heat Transferred 370 | . . . 370 . . Parts Sabotaged . | . . . . . . Parts Stolen . | . . . . . . Parts Stripped . | . . . . . . Power Chain Reactions . | . . . . . . Alert | -11 -10 -10 -10 -9 -9 ------- Run | Yrd Mat Min Sub Rec Scr Maximum Alert Level 2 | . 2 1 . . . Low Security (%) 73 | 100 39 82 . 100 . Level 1 24 | . 55 17 . . . Level 2 2 | . 5 . . . . Level 3 . | . . . . . . Level 4 . | . . . . . . Level 5 . | . . . . . . High Security . | . . . . . . Max Security . | . . . . . . Peak Influence 428 | 10 428 229 . 66 . Initial 118 | . . 118 . 50 . Average 132 | . 252 140 . 12 . Influence Increases 1696 | 15 857 338 233 253 . Destroy 0b10 Robot/C 680 | . 360 200 80 40 . Destroy 0b10 Robot/NC 120 | 15 80 5 . 20 . Destroy Leader 134 | . 94 40 . . . Allied During Kill 22 | . . 11 3 8 . Trap Triggered on 0b10 10 | . 10 . . . . Successful Hack 24 | . 24 . . . . Select Force Hacks 240 | . 60 . . 180 . Disable Machine 45 | . 45 . . . . Destroy Structure 241 | . 184 52 . 5 . Lose Combat Pursuer 180 | . . 30 150 . . Influence Decreases 1696 | 15 551 626 146 358 . Entered New Map 253 | . . 188 10 55 . Time Decay 1384 | 15 541 428 126 274 . Lost Part 40 | . 10 10 10 10 . Lost Ally 19 | . . . . 19 . Squads Dispatched 5 | . 5 . . . . Investigation 3 | . 3 . . . . Extermination . | . . . . . . Reinforcement 2 | . 2 . . . . Assault . | . . . . . . Garrison . | . . . . . . Intercept . | . . . . . . Searches Triggered . | . . . . . . Construction Impeded . | . . . . . . Haulers Reinforced . | . . . . . . Active Scanning Responses . | . . . . . . Cargo Convoy Interrupts . | . . . . . . Stealth | -11 -10 -10 -10 -9 -9 --------- Run | Yrd Mat Min Sub Rec Scr Distress Signals 1 | . 1 . . . . Communications Jammed . | . . . . . . Distress Signals . | . . . . . . Times Spotted 82 | . 33 12 25 2 10 Peak Tracking Total 5 | . 4 3 5 2 3 Tactical Retreats 4 | . . 1 3 . . Traps | -11 -10 -10 -10 -9 -9 ------- Run | Yrd Mat Min Sub Rec Scr Traps Triggered 5 | . 4 . 1 . . Indirectly . | . . . . . . Trap Hack Attempts 12 | . 12 . . . . Triggered . | . . . . . . Disarmed . | . . . . . . Reprogrammed 1 | . 1 . . . . Reused 1 | . 1 . . . . Traps Extracted . | . . . . . . Installed . | . . . . . . Triggered 1 | . 1 . . . . Machines | -11 -10 -10 -10 -9 -9 ---------- Run | Yrd Mat Min Sub Rec Scr Machines Disabled 8 | . 4 . 1 . 3 Max in Single Turn 1 | . 1 . 1 . 1 Machines Repaired . | . . . . . . Machines Dismantled . | . . . . . . Machines Sabotaged . | . . . . . . Overloaded Fab Kills . | . . . . . . Hacking | -11 -10 -10 -10 -9 -9 --------- Run | Yrd Mat Min Sub Rec Scr Machines Accessed 31 | . 8 . 3 12 8 Terminals 11 | . 6 . . 5 . Fabricators . | . . . . . . Repair Stations . | . . . . . . Recycling Units 8 | . 2 . . 6 . Scanalyzers . | . . . . . . Garrison Access . | . . . . . . Total Hacks 111 | . 28 . 14 21 48 Successful 91 | . 17 . 14 12 48 Failed 20 | . 11 . . 9 . Catastrophic 1 | . . . . 1 . Database Lockouts . | . . . . . . Manual 37 | . 24 . . 13 . Terminals 34 | . 26 . . 8 . Fabricators . | . . . . . . Repair Stations . | . . . . . . Recycling Units 10 | . 2 . . 8 . Scanalyzers . | . . . . . . Garrison Access . | . . . . . . Terminal Hacks 72 | . 4 . 14 6 48 Record 64 | . . . 12 5 47 Robot Analysis 2 | . 1 . . 1 . Prototype ID Bank 1 | . 1 . . . . Open Door 1 | . . . 1 . . Alert Level 1 | . 1 . . . . Locate Traps 1 | . 1 . . . . Proto ID Catalog 2 | . . . 1 . 1 Fabricator Hacks . | . . . . . . Repair Station Hacks . | . . . . . . Recycling Unit Hacks . | . . . . . . Scanalyzer . | . . . . . . Garrison Access Hacks . | . . . . . . Unauthorized Hacks 17 | . 11 . . 6 . Terminals 9 | . 9 . . . . Botnet 3 | . 3 . . . . Skim 6 | . 6 . . . . Fabricators . | . . . . . . Repair Stations . | . . . . . . Recycling Units 8 | . 2 . . 6 . Tunnel 8 | . 2 . . 6 . Scanalyzers . | . . . . . . Garrison Access . | . . . . . . Data Cores Recovered . | . . . . . . Used . | . . . . . . Hacking Detections 12 | . 6 . . 6 . Full Trace Events 1 | . 1 . . . . Feedback Events . | . . . . . . Feedback Blocked . | . . . . . . Robot Schematics Acquired . | . . . . . . Robots Built . | . . . . . . Authchips . | . . . . . . Time . | . . . . . . Total Robot Build Rating . | . . . . . . Part Schematics Acquired . | . . . . . . Parts Built . | . . . . . . Authchips . | . . . . . . Time . | . . . . . . Total Part Build Rating . | . . . . . . Parts Repaired . | . . . . . . Time . | . . . . . . Parts Recycled . | . . . . . . Recycled Matter . | . . . . . . Retrieved Matter . | . . . . . . Retrieved Components . | . . . . . . Parts Scanalyzed . | . . . . . . Part Schematics Acquired . | . . . . . . Parts Damaged . | . . . . . . Bothacking | -11 -10 -10 -10 -9 -9 ------------ Run | Yrd Mat Min Sub Rec Scr Used RIF Installer . | . . . . . . Robots Hacked . | . . . . . . Non-combat . | . . . . . . Combat . | . . . . . . Robot Hacks Applied . | . . . . . . Relay Couplers Released . | . . . . . . Fabnet Peak Effective % . | . . . . . . Robots Rewired 7 | . . . . 7 . Allies Hacked . | . . . . . . Hacks Repelled . | . . . . . . Allies | -11 -10 -10 -10 -9 -9 -------- Run | Yrd Mat Min Sub Rec Scr Total Allies 10 | . . 3 . 7 . Largest Group 7 | . . 3 3 7 5 Highest-Rated Group 108 | . . 40 40 108 79 Highest-Rated Ally 27 | . . 16 16 27 27 Total Orders . | . . . . . . Ally Attacks 51 | . . 5 22 8 16 Total Damage 711 | . . 61 323 107 220 Kills 10 | . . 3 2 1 4 Allies Corrupted . | . . . . . . Allies Melted 1 | . . . . . 1 Intel | -11 -10 -10 -10 -9 -9 ------- Run | Yrd Mat Min Sub Rec Scr Active Infowar (turns) 5815 | 18 1726 315 3170 586 . Structural 3756 | . . . 3170 586 . Seismic 2059 | 18 1726 315 . . . Robot Analysis Total 2 | . 1 . . 1 . Derelict Logs Recovered 6 | . . 2 2 . 2 Drone Launches . | . . . . . . Drone Recoveries . | . . . . . . Exploration | -11 -10 -10 -10 -9 -9 ------------- Run | Yrd Mat Min Sub Rec Scr Turns Passed 15347 | 130 1726 1053 4540 1660 6238 Spaces Moved 7597 | 61 912 655 2285 682 3002 Core 191 | 1 . . . . 190 Treads 3747 | 60 514 4 1787 682 700 Legs . | . . . . . . Wheels 3659 | . 398 651 498 . 2112 Hover . | . . . . . . Flight . | . . . . . . Fastest Speed 50 | 50 130 145 130 160 50 Average Speed 182 | 158 158 145 180 217 191 Slowest Speed 250 | 160 240 240 250 250 250 Overloaded Moves . | . . . . . . Propulsion Burnouts . | . . . . . . Robots Hopped . | . . . . . . Potential Cave-ins . | . . . . . . Cave-ins Triggered . | . . . . . . Exploration Rate (%) 75 | 4 98 100 72 86 95 Regions Visited 5 Branch Regions 4 Pre-discovered Areas 11 | . 2 1 . 6 2 Known Exits Taken 1 | . . . 1 . . Unknown Exits Taken 4 | 1 1 1 . 1 . Scrap Searched 17 | . . 1 11 . 5 Spaces Dug 91 | . 26 24 37 4 . Terrain Destroyed 360 | . 190 82 83 5 . Melee 19 | . . . 15 4 . Projectile 12 | . . . 11 1 . AOE 329 | . 190 82 57 . . Terrain Rammed . | . . . . . . Walls Destroyed . | . . . . . . Machines Disabled . | . . . . . . Actions | -11 -10 -10 -10 -9 -9 --------- Run | Yrd Mat Min Sub Rec Scr Total 8853 | 78 1076 715 2627 845 3512 Wait 595 | . 22 20 123 81 349 Move 7592 | 60 911 654 2284 681 3002 Hop . | . . . . . . Pick Up 171 | 3 20 2 40 17 89 Fast Attach 30 | 7 3 . 8 3 9 Attach 27 | . 2 1 14 2 8 Detach 7 | . 2 . 1 1 3 Swap 66 | . 18 14 32 2 . Drop 114 | . 8 2 50 6 48 Fire 155 | 8 71 22 48 3 3 Melee 35 | . . . 21 14 . Ram 5 | . 5 . . . . Kick . | . . . . . . Crush 2 | . 2 . . . . Escape Stasis . | . . . . . . Rewire 36 | . . . . 35 1 Trap 12 | . 12 . . . . Miscellaneous 6 | . . . 6 . . Route ------- -11/Scrapyard -10/Materials (discovered 4 exits: [*Mat x3] / [*Min]) -10/Mines (discovered 3 exits: [*Mat x2] / *Sub) -10/Subcaves (discovered 3 exits: [*Mat x2] / *Rec) -9/Recycling (discovered 2 exits: [*Fac] / *Scr) -9/Scraptown (discovered 2 exits: [*Fac x2]) History --------- Turn | Location | Event 90 | -11/Scrapyard | Discovered new exit (range 12) 131 | -11/Scrapyard | Entered Materials 164 | -10/Materials | Discovered new exit (range 16) 310 | -10/Materials | Build established: Mutant 433 | -10/Materials | Discovered new exit (range 3) 938 | -10/Materials | Discovered new exit (range 12) 1687 | -10/Materials | Discovered new exit (range 8) 1857 | -10/Materials | Entered Mines 1928 | -10/Mines | Learned Materials stockpile data 1960 | -10/Mines | Discovered new exit (range 6) 2037 | -10/Mines | Learned Materials security intel 2170 | -10/Mines | Core integrity fell below 50% 2294 | -10/Mines | Assisted by bots powering up and referring to "LRC-V3" 2513 | -10/Mines | Discovered new exit (range 11) 2516 | -10/Mines | Learned location of Storage (-9) 2611 | -10/Mines | Discovered new exit (range 13) 2910 | -10/Mines | Entered Subcaves 2910 | -10/Subcaves | Accompanied by 3 allies 2911 | -10/Subcaves | Approached by a straggling Scientist 3173 | -10/Subcaves | Shifting Twisted Machinery released Sub. Shrapnel Launcher 3175 | -10/Subcaves | Shifting Twisted Machinery released Sub. Machine Gun 3665 | -10/Subcaves | Discovered new exit (range 6) 3954 | -10/Subcaves | Ambushed by Subdweller buried in earth 3996 | -10/Subcaves | Build established: Subdweller-Mutant 4628 | -10/Subcaves | Build established: Mutant 5033 | -10/Subcaves | Build established: Scavenger-Mutant 5395 | -10/Subcaves | Ambushed by Subdweller buried in earth 5453 | -10/Subcaves | Build established: Mutant 5474 | -10/Subcaves | Identified exit to Recycling 5782 | -10/Subcaves | Learned Materials garrison access intel 6254 | -10/Subcaves | Visited Clippyterm 6261 | -10/Subcaves | Learned Factory trap positions 6261 | -10/Subcaves | Learned Research machine intel 6307 | -10/Subcaves | Core integrity fell below 20% 6340 | -10/Subcaves | Discovered new exit (range 8) 6519 | -10/Subcaves | Visited 4L-MR0's lab 6539 | -10/Subcaves | Found Arachnoskeleton 7450 | -10/Subcaves | Entered Recycling 8385 | -9/Recycling | Discovered new exit (range 12) 8424 | -9/Recycling | Build established: Commander-Mutant 9021 | -9/Recycling | Scanned before Scraplab entrance 9059 | -9/Recycling | Entered Scraplab 9081 | -9/Recycling | Discovered new exit (range 3) 9110 | -9/Recycling | Entered Scraptown 9110 | -9/Scraptown | Accompanied by 5 allies 9608 | -9/Scraptown | Visited Red Mages 9716 | -9/Scraptown | Visited SPCMW 9766 | -9/Scraptown | Visited Assassins FH 10098 | -9/Scraptown | Scanned Subdweller tech in exchange for log data 10103 | -9/Scraptown | Learned Factory trap positions 10106 | -9/Scraptown | Learned Factory garrison access intel 10146 | -9/Scraptown | Discovered new exit (range 13) 10936 | -9/Scraptown | Visited Shadow of the Wyrm 10952 | -9/Scraptown | Visited Cyclists 11361 | -9/Scraptown | Build established: Hauler-Mutant 11909 | -9/Scraptown | Visited The Evicted 12042 | -9/Scraptown | Visited TADAMA 12106 | -9/Scraptown | Visited UFD Registry 12106 | -9/Scraptown | Registered with UFD as "Flaknuts" 12147 | -9/Scraptown | Visited Junk Cannon Lab 12164 | -9/Scraptown | Found Prototype Special Weapon 12164 | -9/Scraptown | Identified Junk Cannon 12207 | -9/Scraptown | Received an X-ray algorithm 12211 | -9/Scraptown | Visited LU-1G1's Boring Crew 12256 | -9/Scraptown | Visited Curators Association 12318 | -9/Scraptown | Delivered Scrap Shield to a Scientist 12618 | -9/Scraptown | Visited Scrapoid Research Area 12695 | -9/Scraptown | Visited Supply Room 12762 | -9/Scraptown | Visited Science Guys 12834 | -9/Scraptown | Visited Chapter 10 12887 | -9/Scraptown | Visited Scrap Suit Storage 12949 | -9/Scraptown | Visited Cartography Club 12993 | -9/Scraptown | Found Surveybot 17 Chip 13319 | -9/Scraptown | Found Deep Structural Scanner 13589 | -9/Scraptown | Entered Cyclist Reading Room 13595 | -9/Scraptown | Learned location of Exiles (-9) 13595 | -9/Scraptown | Learned location of Zion (-6) 14688 | -9/Scraptown | Discovered new exit (range 5) 14793 | -9/Scraptown | Build established: Commander-Mutant 14822 | -9/Scraptown | Met Optimus 14822 | -9/Scraptown | Accepted into 0bPrime 15222 | -9/Scraptown | Civil war broke out across Scraptown 15233 | -9/Scraptown | Found Deploy-a-Sentry 15246 | -9/Scraptown | Found Vmp. Humpback 15348 | -9/Scraptown | Destroyed by QB-J3O(j) with Overtuned Pulse Rifle Last Messages --------------- 15226_ Optimus: "No holds barred, if they're hostile, they are an enemy of the people and we must shoot to kill. Collateral damage is to be expected!" 15227_ Enclosure breached. 15231_ 08-LQH(x): "Quick, someone dig a tunnel out of here!" 15233_ Acquired Deploy-a-Sentry. 15241_ Enclosure breached. 15246_ Acquired Vmp. Humpback. 15251_ Acquired 15 matter. 15255_ Enclosure breached. 15258_ Acquired data core, dynamic key expired. 15266_ Acquired 57 matter. 15268_ Acquired 70 matter. 15301_ TA-LQM(p): "We are one!" 15304_ Acquired 22 matter. 15313_ OW-HOV(E): "How are there so many of them? Surely our efforts have been convincing enough throughout recent cycles." 15338_ Mercenary 2a suffers critical hit (Burn). 15338_ Mercenary 2a destroyed. 15338_ Commando 2b destroyed. 15346_ Y6-O8D(j) destroyed. 15346_ Mercenary 2b destroyed. 15348_ Critical hit (Burn: +38). Map ----- +----------------------------------------------------+ | ?????????????????????????????????????????????????? | | ?????????????????????????????????????????????????? | | ?????????????????????????????????????????????????? | | ?????????????????????????????????????????????????? | | ?????????????????????????????????????????????????? | | ?????????????????????????????????????????????????? | | ?????????????????????????????????#####???????????? | | ?????????????????????????????????#"""#???????????? | | ??###################???####?????#" "#???????????? | | ?#"""##"""##""|##"""#??## ##????# < #???????????? | | ?#"" ##""!##""|##!!"#### [% ###### ##??????????? | | ?#"" #??????????? | | ?# #??????????? | | ?####################### ###########??????????? | | ???????????????????????##pj;#????????????????????? | | ????????????????????????#!%#############?????????? | | ?#######??????###########=!#"""""""""""#?????????? | | ?#"! "???????"""""""""#%[#""""" X """#?????????? | | ?#" "#??????## " #!=#""" """"#?????????? | | ?## X####???# ""#*%#" "!""#?????????? | | ?#" "#???# ""#!!#""" """"#?????????? | | ?#"! !"#???# """"#Y[#"""" ""#?????????? | | ?#" !"#???# " ""#![;"" #?????????? | | ?#"! !"#???# """"# #"" "" " #?????????? | | ?#"! "#???# ""# #"" "" "&#?????????? | | ?## ##??### "#@ # "#?????????? | | ?# #??# #i[#" #?????????? | | ?###### ###??###### #####!*## ##########?????????? | | ####### ########### #####=%!" ##???#####?????????? | | """"""" """" """ "" ="!=%!*! #???"""""?????????? | | *%! =[%=*!!!% #?? " "" "#???????? | | = ! =!!%!*% "#?? " "" "#???????? | | ! %! !=!![[= #?" "#???????? | | !!! != ##" """"#???????? | | ! " "#???????? | | """"""""""""" " " " "##" " "" "#???????? | | """"""""""""""""" "" """ #?" " "" ?????????? | | ##### ################"" "#?? """"??????????? | | ##????????#"" "########??????????? | | X"#????????#"" "## """#?????????? | | "" "" ##????????#""! "## ""#?????????? | | "" "" X"#??????###"" "## ""#?????????? | | " " ######### #! "## #?????????? | | "" /% [=%!! #?????????? | | "" = =*! !="## #?????????? | | " " ###"##### #" =[!"## "" #?????????? | | "" "" ""#??????###"" ! "##"""" #?????????? | | "" "" ##????????#"" "#########?????????? | | X"#????????#"" "##############????? | | ##????????#"" * "## """ "#????? | +----------------------------------------------------+ Best States ------------- Heat Dissipation 25 Energy Generation 18 Energy Capacity 300 Matter Stores 300 Matter Capacity 300 Sight Range 16 Terrain Scan Density 10 Armor Coverage 800 Evasion (%) 50 Recoil Reduction 2 Authchip Count 5 Item Schematics ----------------- None Robot Schematics ------------------ None Fabricated ------------ Nothing Repaired ---------- Nothing Alien Tech Used ----------------- None Achievements -------------- None Challenges ------------ None Game ------ Seed ForceIntegratedBooster Manual? 0 Play Time 01:19:37 Cumulative 271.6 hours Start 2025.05.26 @ 22:54:38 End 2025.05.27 @ 00:32:18 Sessions 3 Manual Loads 0 Difficulty Rogue Special Mode None Game No. 132 Rogue 132 Adventurer 0 Explorer 0 Win Type - Total 1 Types 0/0/0/0/1/0/0/0/0/0 Lore% 67 Gallery% 73 Achievement% 64 Wizard Run 0 Options --------- Layout 0 ASCII 0 Keyboard 0 Movement Mouse Keybinds 0 Fullscreen 1 Font 24/Smallcaps Map View 183x50 Zoom Use 0% Tactical HUD 1 Map Filters NONE Filters NONE Steam 0 RUN: c2ed47f7-3ec1-4ef1-8f1c-106beb431561